Workbook

Sheet Приложение 1
A1: Приложение №1
A2: Показатели социально-экономического развития
A3: муниципального образования "Свердловское городское поселение"
A4: (муниципальный район, городской округ, городское поселение, сельское поселение)
A5: Ленинградской области за 2013 г.
A7: № п/п | B7: Наименование показателя | C7: Ед. изм. | D7: 2013 г. | E7: темп роста к соответствующему периоду предыдущего года, %
A9: 1. Демографические показатели
A10: 1.1. | B10: Численность постоянного населения (на начало года) - всего | C10: чел. | D10: 10,996.0 | E10: 103.2
A11: 1.2. | B11: Число родившихся, всего | C11: чел. | D11: 119.0 | E11: 140.0
A12: 1.3. | B12: Число умерших, всего | C12: чел. | D12: 153.0 | E12: 116.0
A13: 1.4. | B13: Миграционный прирост (убыль) | C13: чел. | D13: - | E13: 0.0
A14: 1.5. | B14: Общий коэффициент рождаемости | C14: чел. на 1000 насел. | D14: =D11/D10*1000 -> 10.82 | E14: 128.8
A15: 1.6. | B15: Общий коэффициент смертности | C15: чел. на 1000 насел. | D15: =D12/D10*1000 -> 13.91 | E15: 109.3
A16: 1.7. | B16: Коэффициент естественного прироста | C16: чел. на 1000 насел. | D16: =D14-D15 -> -3.09 | E16: 65.7
A17: 1.8. | B17: Коэффициент миграционного прироста | C17: чел. на 1000 насел. | D17: - | E17: 0.0
A18: 2. Труд и заработная плата (по крупным и средним организациям)
A19: 2.1. | B19: Среднесписочная численность работников - всего | C19: чел. | D19: 3,950 | E19: 117.7
B20: из нее: по видам экономической деятельности
B21: - сельское хозяйство, охота и лесное хозяйство | C21: чел. | D21: 646.0 | E21: 100.5
B22: - добыча полезных ископаемых | C22: чел. | D22: - | E22: -
B23: - обрабатывающие производства | C23: чел. | D23: 2,398.0 | E23: 111.2
B24: - производство и распределение электроэнергии, газа и воды | C24: чел. | D24: 52.0 | E24: 0.0
B25: - строительство | C25: чел. | D25: - | E25: -
B26: - оптовая и розничная торговля; ремонт автотранспортных средств, мотоциклов, бытовых изделий и предметов личного пользования | C26: чел. | D26: 534.0 | E26: 229.2
B27: - транспорт и связь | C27: чел. | D27: - | E27: -
B28: - образование | C28: чел. | D28: 140.0 | E28: 97.9
B29: - здравоохранение и предоставление социальных услуг | C29: чел. | D29: 58.0 | E29: 96.7
B30: - предоставление прочих коммунальных, социальных и персональных услуг | C30: чел. | D30: 19.0 | E30: 111.8
B31: - деятельность по организации отдыха и развлечений, культуры и спорта | C31: чел. | D31: - | E31: -
A32: 2.2. | B32: Уровень зарегистрированной безработицы от экономически активного населения на конец периода | C32: % | D32: 0.09 | E32: 100.00
A33: 2.3. | B33: Ввод новых рабочих мест на предприятиях и организациях - всего | C33: ед. | D33: =D35 -> 3.0 | E33: 0.0
B34: в том числе:
B35: на действующих предприятиях | C35: ед. | D35: =D37+D38 -> 3.0 | E35: 0.0
B36: (указать название предприятия и вид деятельности по ОКВЭД)
B37: ООО "Невские пороги", ОКВЭД 15.86 | D37: 0.0 | E37: 0.0
B38: ООО "Эталон", ОКВЭД 26.40 | D38: 3.0 | E38: 0.0
B39: на вновь вводимых предприятиях | C39: ед.
B40: (указать название предприятия и вид деятельности по ОКВЭД)
B43: в том числе по видам экономической деятельности:
B44: - сельское хозяйство, охота и лесное хозяйство | C44: ед.
B45: - добыча полезных ископаемых | C45: ед.
B46: - обрабатывающие производства | C46: ед.
B47: - производство и распределение электроэнергии, газа и воды | C47: ед.
B48: - строительство | C48: ед.
B49: - оптовая и розничная торговля; ремонт автотранспортных средств, мотоциклов, бытовых изделий и предметов личного пользования | C49: ед.
B50: - транспорт и связь | C50: ед.
B51: - образование | C51: ед.
B52: - здравоохранение и предоставление социальных услуг | C52: ед.
B53: - предоставление прочих коммунальных, социальных и персональных услуг | C53: ед.
B54: - деятельность по организации отдыха и развлечений, культуры и спорта | C54: ед.
A55: 2.4. | B55: Среднемесячная номинальная начисленная заработная плата в расчете на 1 работника - всего | C55: руб. | D55: 33,515.5 | E55: 110.3
B56: в том числе:
B57: - сельское хозяйство, охота и лесное хозяйство | C57: руб. | D57: 20,737.4 | E57: 112.0
B58: - добыча полезных ископаемых | C58: руб. | D58: - | E58: -
B59: - обрабатывающие производства | C59: руб. | D59: 36,188.5 | E59: 109.6
B60: - производство и распределение электроэнергии, газа и воды | C60: руб. | D60: 25,170.7 | E60: 0.0
B61: - строительство | C61: руб. | D61: - | E61: -
B62: - оптовая и розничная торговля; ремонт автотранспортных средств, мотоциклов, бытовых изделий и предметов личного пользования | C62: руб. | D62: 39,301.9 | E62: 93.9
B63: - транспорт и связь | C63: руб. | D63: - | E63: -
B64: - образование | C64: руб. | D64: 26,085.0 | E64: 123.5
B65: - здравоохранение и предоставление социальных услуг | C65: руб. | D65: 20,061.4 | E65: 109.6
B66: - предоставление прочих коммунальных, социальных и персональных услуг | C66: руб. | D66: 21,650.4 | E66: 95.9
B67: - деятельность по организации отдыха и развлечений, культуры и спорта | C67: руб. | D67: - | E67: -
A68: 3. Промышленное производство (по крупным и средним организациям)
A69: 3.1. | B69: Объем отгруженных товаров собственного производства, выполненных работ и услуг (РАЗДЕЛ С: Добыча полезных ископаемых + РАЗДЕЛ D: Обрабатывающие производства + РАЗДЕЛ Е: Производство и распределение электроэнергии, газа и воды) | C69: тыс. руб. | D69: =('Прил. 2 Эталон'!C11+'Прил. 2 Невские Пороги'!C11)*1000 -> 329,500.0
A70: 3.2. | B70: Производство основных важнейших видов продукции в натуральном выражении (подразделы DA, DB, DC, DD и т.д.) | C70: шт. | D70: 28,600,000.0 | E70: 107.1
C71: тонн | D71: ='Прил. 2 Невские Пороги'!C16+'Прил. 2 Невские Пороги'!C17 -> 0.0
A77: 4. Сельское хозяйство (по крупным и средним организациям)
A78: 4.1. | B78: Объем продукции сельского хозяйства в хозяйствах всех категорий | C78: тыс. руб. | D78: =D80+D81 -> 0.0
B79: в том числе:
B80: - растениеводство | C80: тыс. руб. | D80: 0.0
B81: - животноводство | C81: тыс. руб. | D81: 0.0
A82: 4.2. | B82: Производство важнейших видов продукции сельского хозяйства в натуральном выражении:
B83: - зерно | C83: тонн | D83: 0.0
B84: - картофель | C84: тонн | D84: 0.0
B85: - овощи (открытого и закрытого грунта) | C85: тонн | D85: 0.0
B86: - мясо (в живом весе) | C86: тонн | D86: 0.0
B87: - молоко | C87: тыс. т | D87: 0.0
B88: - яйца | C88: млн. шт. | D88: - | E88: -
A89: 5. Потребительский рынок (по крупным и средним организациям)
A90: 5.1. | B90: Оборот розничной торговли | C90: тыс. руб. | D90: 99,183.0 | E90: 755.2
A91: 5.2. | B91: Оборот общественного питания | C91: тыс. руб. | D91: 9,892.0 | E91: 72.8
A92: 5.3. | B92: Объем платных услуг населению | C92: тыс. руб. | D92: 6,767.3 | E92: 1,515.2
A93: 6. Инвестиции в основной капитал и строительство (по крупным и средним организациям)
A94: 6.1. | B94: Объем инвестиций в основной капитал - всего | C94: тыс. руб | D94: =D96+D98+D101 -> 712,436.0 | E94: 176.2
B95: в том числе по видам экономической деятельности:
B96: - сельское хозяйство, охота и лесное хозяйство | C96: тыс. руб. | D96: 396,217.0 | E96: 160.5
B97: - добыча полезных ископаемых | C97: тыс. руб.
B98: - обрабатывающие производства | C98: тыс. руб. | D98: 258,011.0 | E98: 199.3
B99: - производство и распределение электроэнергии, газа и воды | C99: тыс. руб.
B100: - строительство | C100: тыс. руб.
B101: - оптовая и розничная торговля; ремонт автотранспортных средств, мотоциклов, бытовых изделий и предметов личного пользования | C101: тыс. руб. | D101: 58,208.0 | E101: 208.1
B102: - транспорт и связь | C102: тыс. руб.
B103: - образование | C103: тыс. руб.
B104: - здравоохранение и предоставление социальных услуг | C104: тыс. руб.
B105: - предоставление прочих коммунальных, социальных и персональных услуг | C105: тыс. руб.
B106: - деятельность по организации отдыха и развлечений, культуры и спорта | C106: тыс. руб.
A107: 6.2. | B107: Объем инвестиций в основной капитал по источникам финансирования - всего | C107: тыс. руб.
B108: в том числе:
B109: федеральный бюджет | C109: тыс. руб.
B110: областной бюджет | C110: тыс. руб.
B111: местный бюджет | C111: тыс. руб.
B112: собственные средства организаций | C112: тыс. руб.
B113: прочие источники | C113: тыс. руб.
A114: 6.3. | B114: Объем работ по виду деятельности "строительство" | C114: тыс. руб.
A115: 6.4. | B115: Ввод в действие жилых домов | C115: тыс. м2
A116: 6.5. | B116: Средняя обеспеченность одного жителя общей площадью | C116: кв. м/чел
A117: 7. Финансы (по крупным и средним организациям)
A118: 7.1. | B118: Сальдированный финансовый результат деятельности организаций - всего | C118: тыс. руб. | D118: =D121 -> 0.0
B119: из него по видам экономической деятельности:
B120: - обрабатывающие производства | C120: тыс. руб.
B121: - сельское хозяйство | C121: тыс. руб. | D121: 0.0
B122: - строительство | C122: тыс. руб.
A123: 7.2. | B123: Задолженность на последнюю дату
B124: - дебиторская (в т.ч. просроченная) | C124: млн.руб. | D124: 0.0
B125: - кредиторская (в т.ч. просроченная) | C125: млн.руб. | D125: 0.0
B126: по платежам в бюджеты всех уровней | C126: млн.руб. | D126: 0.0
A127: 8. Бюджет муниципального образования ( по муниципальному району - консолидированный бюджет)
A128: 8.1. | B128: Доходы бюджета - всего | C128: тыс. руб. | D128: =D130+D139 -> 261,998.48 | E128: 201.8
B129: в том числе:
B130: Налоговые доходы: | C130: тыс. руб. | D130: =D132+D133+D134+D135+D136+D138 -> 105,596.5 | E130: 154.2
B131: в том числе:
B132: Налоги на прибыль, доходы | C132: тыс. руб. | D132: 43,437.1 | E132: 145.2
B133: Налоги на совокупный доход | C133: тыс. руб. | D133: 1,764.5 | E133: 1,014.1
B134: Налоги на имущество | C134: тыс. руб. | D134: 3,665.4 | E134: 132.1
B135: Земельный налог | C135: тыс.руб. | D135: 49,818.3 | E135: 166.8
B136: Транспортный налог | C136: тыс.руб. | D136: 6,850.1 | E136: 118.3
B137: Государственная пошлина | C137: тыс. руб. | D137: - | E137: -
B138: Задолженность и перерасчеты по отмененным налогам, сборам и иным обязательным платежам | C138: тыс. руб. | D138: 61.1 | E138: -163.8
B139: Неналоговые доходы: | C139: тыс. руб. | D139: =D140+D141+D142+D144+D145 -> 156,401.9 | E139: 169.5
B140: Доходы от использования имущества, находящегося в государственной и муниципальной собственности | C140: тыс. руб. | D140: 45,079.6 | E140: 141.1
B141: Доходы от оказания платных услуг и компенсации затрат государства | C141: тыс. руб. | D141: 394.4 | E141: 147.8
B142: Доходы от продажи материальных и нематериальных активов | C142: тыс. руб. | D142: 12,062.5 | E142: 110.1
B143: Штрафы, санкции, возмещение ущерба | C143: тыс. руб. | D143: - | E143: -
B144: Прочие неналоговые доходы | C144: тыс. руб. | D144: 7,388.2 | E144: 997.2
B145: Безвозмездные поступления от других бюджетов бюджетной системы Российской Федерации | C145: тыс. руб. | D145: 91,477.3 | E145: 189.2
A146: 8.2. | B146: Расходы бюджета - всего | C146: тыс. руб. | D146: =D147+D148+D149+D150+D151+D153+D154+D156+D157+D158 -> 176,665.82 | E146: 140.3
B147: Общегосударственные вопросы | C147: тыс. руб. | D147: 45,050.6 | E147: 97.2
B148: Национальная оборона | C148: тыс. руб. | D148: 495.9 | E148: 102.1
B149: Национальная безопасность и правоохранительная деятельность | C149: тыс. руб. | D149: 176.1 | E149: 66.0
B150: Национальная экономика | C150: тыс. руб. | D150: 20,486.3 | E150: 151.6
B151: Жилищно-коммунальное хозяйство | C151: тыс. руб. | D151: 98,587.1 | E151: 182.0
B152: Охрана окружающей среды | C152: тыс. руб. | D152: - | E152: -
B153: Образование | C153: тыс. руб. | D153: 366.2 | E153: 107.5
B154: Культура, кинематография | C154: тыс. руб. | D154: 9,696.9 | E154: 102.7
B155: Здравоохранение | C155: тыс. руб. | D155: - | E155: -
B156: Социальная политика | C156: тыс. руб. | D156: 712.4 | E156: 133.9
B157: Физическая культура и спорт | C157: тыс. руб. | D157: 663.5 | E157: 138.3
B158: Средства массовой информации | C158: тыс. руб. | D158: 430.8 | E158: 120.1
B159: Обслуживание государственного и муниципального долга | C159: тыс. руб. | D159: - | E159: -
B160: Межбюджетные трансферты общего характера бюджетам муниципальных образований | C160: тыс. руб. | D160: - | E160: -
A161: 8.3. | B161: Бюджетная обеспеченность по доходам на 1 жителя муниципального района | C161: руб./чел. | D161: =D128/D10*1000 -> 23,826.7 | E161: 158.0
A162: 8.4. | B162: Бюджетная обеспеченность по расходам на 1 жителя муниципального района | C162: руб./чел. | D162: =D146/D10*1000 -> 16,066.4 | E162: 136.0
B163: 9. Закупки продукции для муниципальных нужд
A164: 9.1. | B164: Закупки для муниципальных нужд за счет средств местного бюджета с осуществлением процедуры размещения муниципального заказа в соответствии с Федеральным законом от 21 июля 2005 года № 94-ФЗ | C164: млн. руб. | D164: ='Приложение 4'!G96/1000000 -> 196.1 | E164: 94.7
A165: 10. Жилищно-коммунальное хозяйство
A166: 10.1. | B166: Количество семей, состоящих на учете по улучшению жилищных условий - всего | C166: ед./чел. | D166: 217/563 | E166: 99,1/96,4
B167: из них: льготные категории | C167: ед./чел. | D167: 43/86 | E167: 89,6/66,2
A168: 10.2. | B168: Период ожидания жилья | C168: лет | D168: 1-44 | E168: 102.32
A169: 10.3. | B169: Удельный вес населения, нуждающегося в жилье | C169: % | D169: =563/D10*100 -> 5.12 | E169: 93.1
A170: 10.4. | B170: Доля расходов бюджета на содержание жилищно-коммунального хозяйства | C170: % | D170: 0.0 | E170: 0.0
A171: 10.5. | B171: Уровень собираемости жилищно-коммунальных платежей от населения | C171: % | D171: 94.4 | E171: 100.2
A172: 10.6. | B172: Процент компенсации населением стоимости жилищно-коммунальных услуг по установленным для населения тарифам - всего | C172: % | D172: - | E172: -
B173: в том числе:
B174: - жилищные услуги | C174: % | D174: - | E174: -
B175: - водоснабжение | C175: % | D175: - | E175: -
B176: - отопление | C176: % | D176: - | E176: -
B177: - горячее водоснабжение | C177: ед. | D177: - | E177: -
A178: 10.7. | B178: Число семей, получающих субсидии | C178: чел. | D178: 50.0 | E178: 82.0
A179: 10.8. | B179: Число граждан, пользующихся льготами по оплате жилищно-коммунальных услуг | C179: чел. | D179: 1,816.0 | E179: 94.0
A180: 10.9. | B180: Сумма начисленных субсидий по оплате жилищно-коммунальных услуг | C180: млн. руб. | D180: 0.56 | E180: 108.3
A181: 10.10. | B181: Сумма начисленных льгот по оплате жилищно-коммунальных услуг | C181: млн. руб. | D181: 19.53 | E181: 83.0
A182: * По п.4 информация будет предоставлена позднее, т.к. сроки бухгалтерской отчётности определены более поздним сроком

Sheet Прил. 2 Эталон
C1: Приложение №2
A3: ОСНОВНЫЕ ПОКАЗАТЕЛИ РАБОТЫ ПРОМЫШЛЕННЫХ ПРЕДПРИЯТИЙ (крупные и средние предприятия)
A5: Предприятие: ЗАО "Завод стройматериалов "Эталон"
A6: Муниципальное образование, адрес: МО "Свердловское городское поселение" 188682, Лен.обл., Всеволожский р-н, п.им. Свердлова, 1 мкр, д.1
A8: январь - декабрь 2013 года
B10: Ед. изм. | C10: За период с начала года (факт) | D10: в % к соотв. периоду предыдущего года
A11: Отгружено товаров собственного производства, выполнено работ и услуг | B11: млн. руб. | C11: 329.5 | D11: 114.4
A12: Среднесписочная численность работников | B12: чел. | C12: 96.0 | D12: 64.9
A13: Создание новых рабочих мест | B13: ед. | C13: 3.0
A14: Средняя зарплата в последнем месяце квартала | B14: руб. | C14: 67,359.0 | D14: 103.1
A15: Производство / экспорт основных видов промышленной продукции в натуральном выражении, в соотв.ед.изм. производственно-технического назначения:
A16: кирпич | B16: млн.шт. | C16: 28.6 | D16: 107.1
A17: Задолженность на отчетную дату:
A18: дебиторская/ в том числе просроченная | B18: тыс. руб. | C18: 8 324,0/- | D18: 96.2
A19: кредиторская/ в том числе просроченная | B19: тыс. руб. | C19: 12 154,0/- | D19: 102.5
A20: из кредиторской задолженности:
A21: задолженность по оплате труда | C21: 2,424.0 | D21: 96.5
A22: Прибыль (+,-) | B22: тыс. руб. | C22: 51,840.0 | D22: 136.9
A23: Инвестиции в основной капитал - всего | B23: тыс. руб. | C23: 5,233.0 | D23: 55.5

Sheet Прил. 2 Невские Пороги
C1: Приложение №2
A3: ОСНОВНЫЕ ПОКАЗАТЕЛИ РАБОТЫ ПРОМЫШЛЕННЫХ ПРЕДПРИЯТИЙ (крупные и средние предприятия)
A5: Предприятие: ООО"Невские пороги"
A6: Муниципальное образование, адрес: МО "Свердловское городское поселение" 188682, Лен.обл., Всеволожский р-н, п.им. Свердлова, 1 мкр, д.1
A8: январь - декабрь 2013 года
B10: Ед. изм. | C10: За период с начала года (факт) | D10: в % к соотв. периоду предыдущего года
A11: Отгружено товаров собственного производства, выполнено работ и услуг | B11: млн. руб.
A12: Среднесписочная численность работников | B12: чел.
A13: Создание новых рабочих мест | B13: ед.
A14: Средняя зарплата в последнем месяце квартала | B14: руб.
A15: Производство / экспорт основных видов промышленной продукции в натуральном выражении, в соотв.ед.изм. производственно-технического назначения:
A16: чай | B16: т
A17: кофе | B17: т
A18: Задолженность на отчетную дату: | B18: тыс. руб.
A19: дебиторская/ в том числе просроченная | B19: тыс. руб.
A20: кредиторская/ в том числе просроченная | B20: тыс. руб.
A21: из кредиторской задолженности:
A22: задолженность по оплате труда | B22: тыс. руб.
A23: Прибыль (+,-) | B23: тыс. руб.
A24: Инвестиции в основной капитал - всего | B24: тыс. руб.
A26: * В связи с тем, что сроки бухгалтерской отчётности определены более поздним сроком, ООО "Невские пороги" предоставят отчёт в конце марта 2014 г.

Sheet Приложение 3
D1: Приложение № 3
A3: ВВОД В ДЕЙСТВИЕ ОБЪЕКТОВ
B4: Единица | D4: Введено
B5: измерения | C5: Ед. изм. | D5: за период с начала года | E5: за соответств. период предыдущего года
A6: производственного назначения (с указанием мощности): | C6: в соответствующих единицах | D6: - | E6: -
A11: Административный корпус 32-отряда УГПС г.Волосово. | C11: м2 | D11: .515,8
B12: кв./тыс.кв.м | D12: - | E12: -
D13: - | E13: -
D14: - | E14: -
A15: Здание производственной базы по переработке древесины в д.Б.Сабск | C15: м2 | D15: .405,8
A16: Подводящий газопровод Волосово-Захонье-Рабитицы | C16: км | D16: .8,3
A17: Цех по расфасовке туалетной бумаги | C17: тыс.шт./сутки | D17: 10 | E17: 0
A20: в том числе: природоохранных (указать) | B20: в соответст- вующих ед.
A21: непроизводственного назначения: | D21: - | E21: -
A22: Реконструкция водопровода г.Волосово | B22: кв./тыс.кв.м | C22: км. | D22: 3
A23: общая площадь жилых домов | C23: квартир/тыс. кв. м | D23: 51 / 2415,7 | E23: -
A24: школы | C24: ед./уч. мест | D24: - | E24: -
A25: дошкольные учреждения | C25: ед./мест | D25: - | E25: -
A26: больницы | C26: ед./коек | D26: - | E26: -
A27: амбулаторно-поликлинические учреждения | C27: ед./посещений в смену | D27: - | E27: -
A28: объекты социальной защиты | C28: ед./мест | D28: - | E28: -
A30: * 28.12.2013 г. администрацией МО "Всеволожский муниципальный район" подписан Акт ввода в эксплуатацию МКД, расположенного по адресу: п.им.Свердлова, мкр.1, д.44.

Sheet Приложение 4
B1: Приложение № 4
B2: РЕАЛИЗАЦИЯ АДРЕСНОЙ ПРОГРАММЫ КАПИТАЛЬНОГО СТРОИТЕЛЬСТВА
B3: муниципального района (городского округа) Ленинградской области
B4: за 2013 год
A5: № п/п | B5: Наименование заказчика, объекта и его местонахождение, подрядчик | C5: Источник финансирования | D5: Годы строительства | E5: Проектная мощность | F5: Сметная стоимость (тыс.руб.) | H5: Остаток на 01.01. 2013 г. (тыс.руб.) | J5: План на 2013 г. (тыс.руб.) | K5: Фактический объем (тыс.руб.) | M5: Фактический ввод мощности
F6: КВ | G6: СМР | H6: КВ | I6: СМР | K6: КВ | L6: СМР
A7: 1 | B7: ООО "Ландж"; 190000, Санкт-Петербург, проспект Елизарова, 34, лит.А | C7: Бюджет МО "Свердловское городское поселение" | D7: 2013 | G7: 2,596,316.00 | J7: 2,596,316.00 | L7: 2,596,316.00 | M7: 2,596,316.00
A8: =A7+1 -> 2 | B8: ООО "ЛИЭГ"; 198255, Санкт-Петербург, пр. Ветеранов, д.50, лит.А | C8: Бюджет МО "Свердловское городское поселение" | D8: 2013 | G8: 80,000.00 | J8: 80,000.00 | L8: 80,000.00 | M8: 80,000.00
A9: 3 | B9: ООО "Электромонтаж";188644, Ленинградская обл. г. Всеволожск, ул. Ленинградская, д.16, корп.1, пом.II | C9: Бюджет МО "Свердловское городское поселение" | D9: 2013 | G9: 434,940.00 | J9: 434,940.00 | L9: 434,940.00 | M9: 434,940.00
A10: 4 | B10: ООО "Энергопроф";196601, г. Пушкин, ул. Глинки д.3, офис 105 | C10: Бюджет МО "Свердловское городское поселение" | D10: 2013 | G10: 1,124,722.78 | J10: 1,124,722.78 | L10: 1,124,722.78 | M10: 1,124,722.78
A11: 5 | B11: ООО "Стройдормонтаж"; 195220, СПб, Гражданский пр., д.4, кор.1, офис 73,74 | C11: Бюджет МО "Свердловское городское поселение" | D11: 2013 | G11: 165,000.00 | J11: 165,000.00 | L11: 165,000.00 | M11: 165,000.00
A12: 6 | B12: ООО "Объединение энергоменеджмента"; 197227, г. СПб, пр. Испытателей, д.30, кор.2, лит. А, офис 33, пом.А-4-19к (Почтовый адрес: 197227, г.СПб, пр. Комендантский д.с4, лит.А, офис 407) | C12: Бюджет МО "Свердловское городское поселение" | D12: 2013 | G12: 278,850.00 | J12: 278,850.00 | L12: 278,850.00 | M12: 278,850.00
A13: 7 | B13: ООО "НК Регион"; 197755, г. СПб, п. Лисий Нос, ул. Электропередач, д.32, лит. А | C13: Бюджет МО "Свердловское городское поселение" | D13: 2013 | G13: 448,500.00 | J13: 448,500.00 | L13: 448,500.00 | M13: 448,500.00
A14: 8 | B14: ООО "Потенциал"; 192241, Санкт-Петербург, ул. Южное шоссе, д. 49, лит.А | C14: Бюджет МО "Свердловское городское поселение" | D14: 2013 | G14: 604,043.07 | J14: 604,043.07 | L14: 604,043.07 | M14: 604,043.07
A15: 9 | B15: ООО "Мегадор"; 194100, СПб, ул. Новолитовская, д.37а, лит. А | C15: Бюджет МО "Свердловское городское поселение" | D15: 2013 | G15: 787,980.99 | J15: 787,980.99 | L15: 787,980.99 | M15: 787,980.99
A16: 10 | B16: ООО "Зеленые дороги"; 192012, Санкт-Петербург, пр. Обуховской Обороны, д.295, лит. А, пом. 3Н | C16: Бюджет МО "Свердловское городское поселение" | D16: 2013 | G16: 719,829.97 | J16: 719,829.97 | L16: 719,829.97 | M16: 719,829.97
A17: 11 | B17: ООО "ТД Меридиан"; 195279, Санкт-Петербург, пр-т Ударников, д.36, литер А, пом. 6-Н | C17: Бюджет МО "Свердловское городское поселение" | D17: 2013 | G17: 118,500.00 | J17: 118,500.00 | L17: 118,500.00 | M17: 118,500.00
A18: 12 | B18: ООО "Юнра"; 192012, Санкт-Петербург, ул. Ново-Александровская, д.5, лит. А | C18: Бюджет МО "Свердловское городское поселение" | D18: 2013 | G18: 2,710,207.11 | J18: 2,710,207.11 | L18: 2,710,207.11 | M18: 2,710,207.11
A19: 13 | B19: ООО "ДорРемСтрой"; 192012, Санкт-Петербург, пр. Обуховской обороны, д.116, к.1, лит.А | C19: Бюджет МО "Свердловское городское поселение" | D19: 2013 | G19: 426,409.59 | J19: 426,409.59 | L19: 426,409.59 | M19: 426,409.59
A20: 14 | B20: ООО "ДорРемСтрой"; 192012, Санкт-Петербург, пр. Обуховской обороны, д.116, к.1, лит.А | C20: Бюджет МО "Свердловское городское поселение" | D20: 2013 | G20: 581,587.45 | J20: 581,587.45 | L20: 581,587.45 | M20: 581,587.45
A21: 15 | B21: ООО "ДорРемСтрой"; 192012, Санкт-Петербург, пр. Обуховской обороны, д.116, к.1, лит.А | C21: Бюджет МО "Свердловское городское поселение" | D21: 2013 | G21: 617,982.65 | J21: 617,982.65 | L21: 617,982.65 | M21: 617,982.65
A22: 16 | B22: ООО "ДСК ИНВЕСТ"; 192102, СПб, пр-т Волковский, д.146, лит.А | C22: Бюджет МО "Свердловское городское поселение" | D22: 2013 | G22: 4,120,459.66 | J22: 4,120,459.66 | L22: 4,120,459.66 | M22: 4,120,459.66
A23: 17 | B23: ООО "ДСК ИНВЕСТ"; 192102, СПб, пр-т Волковский, д.146, лит.А | C23: Бюджет МО "Свердловское городское поселение" | D23: 2013 | G23: =5383080+283320 -> 5,666,400.00 | J23: =5383080+283320 -> 5,666,400.00 | L23: =5383080+283320 -> 5,666,400.00 | M23: =5383080+283320 -> 5,666,400.00
A24: 18 | B24: ООО "Юнра"; 192012, Санкт-Петербург, ул. Ново-Александровская, д.5, лит. А | C24: Бюджет МО "Свердловское городское поселение" | D24: 2013 | G24: 180,551.72 | J24: 180,551.72 | L24: 180,551.72 | M24: 180,551.72
A25: 19 | B25: ФГУП "Ростехинвентаризация"; 119415, г. Москва, пр. Вернадского, д.37, кор.2, Ленинградский филиал ФГУП "Ростехинвентаризация"; 188730, Ленинградская обл., Приозерский р-н, п. Сосново, ул. Озерная, д.4 | C25: Бюджет МО "Свердловское городское поселение" | D25: 2013 | G25: 495,000.00 | J25: 495,000.00 | L25: 495,000.00 | M25: 495,000.00
A26: 20 | B26: ООО "Юнра"; 192012, Санкт-Петербург, ул. Ново-Александровская, д.5, лит. А | C26: Бюджет МО "Свердловское городское поселение" | D26: 2013 | G26: 865,407.76 | J26: 865,407.76 | L26: 865,407.76 | M26: 865,407.76
A27: 21 | B27: ООО "АлиГри";198515, г. Санкт-Петербург, п. Стрельна, ул. Гоголя, д.7-63 | C27: Бюджет МО "Свердловское городское поселение" | D27: 2013 | G27: 796,000.00 | J27: 796,000.00 | L27: 796,000.00 | M27: 796,000.00
A28: 22 | B28: ООО "Юнра"; 192012, Санкт-Петербург, ул. Ново-Александровская, д.5, лит. А | C28: Бюджет МО "Свердловское городское поселение" | D28: 2013 | G28: 1,150,326.39 | J28: 1,150,326.39 | L28: 1,150,326.39 | M28: 1,150,326.39
A29: 23 | B29: ООО "СТ Лидер"; 188682, Ленинградская обл., Всеволожский р-н, п. Свердлова, мкр1, д.1, кв.141 | C29: Бюджет МО "Свердловское городское поселение" | D29: 2013 | G29: 724,384.85 | J29: 724,384.85 | L29: 724,384.85 | M29: 724,384.85
A30: 24 | B30: ООО "Потенциал"; 192241, Санкт-Петербург, ул. Южное шоссе, д. 49, лит.А | C30: Бюджет МО "Свердловское городское поселение" | D30: 2013 | G30: 795,689.47 | J30: 795,689.47 | L30: 795,689.47 | M30: 795,689.47
A31: 25 | B31: ООО "Потенциал"; 192241, Санкт-Петербург, ул. Южное шоссе, д. 49, лит.А | C31: Бюджет МО "Свердловское городское поселение" | D31: 2013 | G31: 1,327,773.07 | J31: 1,327,773.07 | L31: 1,327,773.07 | M31: 1,327,773.07
A32: 26 | B32: ООО "Джон Галт";190000, г. Санкт-Петербург, ул. Некрасова, д.52, лит.А | C32: Бюджет МО "Свердловское городское поселение" | D32: 2013 | G32: 377,613.29 | J32: 377,613.29 | L32: 377,613.29 | M32: 377,613.29
A33: 27 | B33: ООО "Зеленые дороги"; 192012, Санкт-Петербург, пр. Обуховской Обороны, д.295, лит. А, пом. 3Н | C33: Бюджет МО "Свердловское городское поселение" | D33: 2013 | G33: 596,083.18 | J33: 596,083.18 | L33: 596,083.18 | M33: 596,083.18
A34: 28 | B34: ООО "Невадорстрой"; 193079, Санкт-Петербург, ул. Новоселов, д.8, литер А | C34: Бюджет МО "Свердловское городское поселение" | D34: 2013 | G34: 518,724.38 | J34: 518,724.38 | L34: 518,724.38 | M34: 518,724.38
A35: 29 | B35: ООО "Потенциал"; 192241, Санкт-Петербург, ул. Южное шоссе, д. 49, лит.А | C35: Бюджет МО "Свердловское городское поселение" | D35: 2013 | G35: 437,519.51 | J35: 437,519.51 | L35: 437,519.51 | M35: 437,519.51
A36: 30 | B36: ООО "Потенциал"; 192241, Санкт-Петербург, ул. Южное шоссе, д. 49, лит.А | C36: Бюджет МО "Свердловское городское поселение" | D36: 2013 | G36: 1,336,955.22 | J36: 1,336,955.22 | L36: 1,336,955.22 | M36: 1,336,955.22
A37: 31 | B37: ООО "Мегадор"; 194100, СПб, ул. Новолитовская, д.37а, лит. А | C37: Бюджет МО "Свердловское городское поселение" | D37: 2013 | G37: 997,080.99 | J37: 997,080.99 | L37: 997,080.99 | M37: 997,080.99
A38: 32 | B38: ООО "Зеленые дороги"; 192012, Санкт-Петербург, пр. Обуховской Обороны, д.295, лит. А, пом. 3Н | C38: Бюджет МО "Свердловское городское поселение" | D38: 2013 | G38: 306,367.53 | J38: 306,367.53 | L38: 306,367.53 | M38: 306,367.53
A39: 33 | B39: ООО "РСК ИнтерСпецСтрой" | C39: Бюджет МО "Свердловское городское поселение" | D39: 2013 | G39: 2,722,775.25 | J39: 2,722,775.25 | L39: 2,722,775.25 | M39: 2,722,775.25
A40: 34 | B40: ООО "Торговый дом "СПАРЗ" | C40: Бюджет МО "Свердловское городское поселение" | D40: 2013 | G40: 575,812.50 | J40: 575,812.50 | L40: 575,812.50 | M40: 575,812.50
A41: 35 | B41: ООО "Потенциал"; 192241, Санкт-Петербург, ул. Южное шоссе, д. 49, лит.А | C41: Бюджет МО "Свердловское городское поселение" | D41: 2013 | G41: 2,468,090.82 | J41: 2,468,090.82 | L41: 2,468,090.82 | M41: 2,468,090.82
A42: 36 | B42: ООО "Мегадор"; 194100, СПб, ул. Новолитовская, д.37а, лит. Б | C42: Бюджет МО "Свердловское городское поселение" | D42: 2013 | G42: 2,787,485.69 | J42: 2,787,485.69 | L42: 2,787,485.69 | M42: 2,787,485.69
A43: 37 | B43: ООО "Автономные Мобильные Системы"; 196084, СПб, ул. Ново-Рыбинская, д.19/21 БЦ "Квартал", оф.311 | C43: Бюджет МО "Свердловское городское поселение" | D43: 2013 | G43: 779,159.45 | J43: 779,159.45 | L43: 779,159.45 | M43: 779,159.45
A44: 38 | B44: ЗАО "САМСАР";195273, СПб, Пискаревский пр., д.125, лит. А | C44: Бюджет МО "Свердловское городское поселение" | D44: 2013 | G44: 1,395,690.36 | J44: 1,395,690.36 | L44: 1,395,690.36 | M44: 1,395,690.36
A45: 39 | B45: ЗАО "САМСАР";195273, СПб, Пискаревский пр., д.125, лит. А | C45: Бюджет МО "Свердловское городское поселение" | D45: 2013 | G45: 1,217,205.77 | J45: 1,217,205.77 | L45: 1,217,205.77 | M45: 1,217,205.77
A46: 40 | B46: ООО "Мегадор"; 194100, СПб, ул. Новолитовская, д.37а, лит. Б | C46: Бюджет МО "Свердловское городское поселение" | D46: 2013 | G46: =1162233.01 -> 1,162,233.01 | J46: 1,162,233.01 | L46: 1,162,233.01 | M46: 1,162,233.01
A47: 41 | B47: ООО "Мегадор"; 194100, СПб, ул. Новолитовская, д.37а, лит. Б | C47: Бюджет МО "Свердловское городское поселение" | D47: 2013 | G47: 758,076.02 | J47: 758,076.02 | L47: 758,076.02 | M47: 758,076.02
A48: 42 | B48: ООО "ДСК ИНВЕСТ"; 192102, СПб, пр-т Волковский, д.146, лит.А | C48: Бюджет МО "Свердловское городское поселение" | D48: 2013 | G48: 1,961,819.90 | J48: 1,961,819.90 | L48: 1,961,819.90 | M48: 1,961,819.90
A49: 43 | B49: ООО "РСК ИнтерСпецСтрой" | C49: Бюджет МО "Свердловское городское поселение" | D49: 2013 | G49: 3,891,434.08 | J49: 3,891,434.08 | L49: 3,891,434.08 | M49: 3,891,434.08
A50: 44 | B50: ООО "АлиГри";198515, г. Санкт-Петербург, п. Стрельна, ул. Гоголя, д.7-63 | C50: Бюджет МО "Свердловское городское поселение" | D50: 2013 | G50: 286,100.60 | J50: 286,100.60 | L50: 286,100.60 | M50: 286,100.60
A51: 45 | B51: ФГУП "Ростехинвентаризация -Федеральное БТИ"; 119415, г. Москва, пр. Вернадского, д.37, кор.2, Ленинградский филиал ФГУП "Ростехинвентаризация - Федеральное БТИ"; 188730, Ленинградская обл., Приозерский р-н, п. Сосново, ул. Озерная, д.4 | C51: Бюджет МО "Свердловское городское поселение" | D51: 2013 | G51: 445,640.00 | J51: 445,640.00 | L51: 445,640.00 | M51: 445,640.00
A52: 46 | B52: ЗАО "САМСАР"; 195273, СПб, Пискаревский пр., д.125, лит. А | C52: Бюджет МО "Свердловское городское поселение" | D52: 2013 | G52: 1,461,874.00 | J52: 1,461,874.00 | L52: 1,461,874.00 | M52: 1,461,874.00
A53: 47 | B53: ООО ПСФ "Руст" | C53: Бюджет МО "Свердловское городское поселение" | D53: 2013 | G53: 485,000.00
A54: 48 | B54: ООО Межрегиональное строительное управление "СпецСтрой"; 197341, СПб, Коломяжский пр-т, д.28, офис 7 | C54: Бюджет МО "Свердловское городское поселение" | D54: 2013 | G54: 1,856,425.14 | J54: 1,856,425.14 | L54: 1,856,425.14 | M54: 1,856,425.14
A55: 49 | B55: ООО "Потенциал"; 192241, Санкт-Петербург, ул. Южное шоссе, д. 49, лит.А | C55: Бюджет МО "Свердловское городское поселение" | D55: 2013 | G55: 1,751,150.07 | J55: 1,751,150.07 | L55: 1,751,150.07 | M55: 1,751,150.07
A56: 50 | B56: ООО "Потенциал"; 192241, Санкт-Петербург, ул. Южное шоссе, д. 49, лит.А | C56: Бюджет МО "Свердловское городское поселение" | D56: 2013 | G56: 1,500,861.66 | J56: 1,500,861.66 | L56: 1,500,861.66 | M56: 1,500,861.66
A57: 51 | B57: ООО "Ленстрой-Ол";191123, СПб, ул. Чайковского, д.36, кв.26 | C57: Бюджет МО "Свердловское городское поселение" | D57: 2013 | G57: 4,296,757.00 | J57: 4,296,757.00 | L57: 4,296,757.00 | M57: 4,296,757.00
A58: 52 | B58: ООО "МонтажСпецСтройКомплект";197136, СПб, Чкаловский пр., д.15, лит.З, офис 402 | C58: Бюджет МО "Свердловское городское поселение" | D58: 2013 | G58: 865,321.79 | J58: 865,321.79 | L58: 865,321.79 | M58: 865,321.79
A59: 53 | B59: ООО "Потенциал"; 192241, Санкт-Петербург, ул. Южное шоссе, д. 49, лит.А | C59: Бюджет МО "Свердловское городское поселение" | D59: 2013 | G59: 93,462.74 | J59: 93,462.74 | L59: 93,462.74 | M59: 93,462.74
A60: 54 | B60: ООО "Энергопроф";196601, г. Пушкин, ул. Глинки д.3, офис 105 | C60: Бюджет МО "Свердловское городское поселение" | D60: 2013 | G60: 1,045,438.96 | J60: 1,045,438.96 | L60: 1,045,438.96 | M60: 1,045,438.96
A61: 55 | B61: ООО "Мегадор"; 194100, СПб, ул. Новолитовская, д.37а, лит. А | C61: Бюджет МО "Свердловское городское поселение" | D61: 2013 | G61: 2,189,953.33 | J61: 2,189,953.33 | L61: 2,189,953.33 | M61: 2,189,953.33
A62: 56 | B62: ООО "ПСФ "Руст"; 196128, Санкт-Петербург, Московский пр., д.157/А | C62: Бюджет МО "Свердловское городское поселение" | D62: 2013 | G62: 562,422.22 | J62: 562,422.22 | L62: 562,422.22 | M62: 562,422.22
A63: 57 | B63: ООО "Стройдормонтаж";195220, СПб, Гражданский пр., д.4, кор.1, офис 73,74 | C63: Бюджет МО "Свердловское городское поселение" | D63: 2013 | G63: 340,000.00 | J63: 340,000.00 | L63: 340,000.00 | M63: 340,000.00
A64: 58 | B64: ООО "Юнра"; 192012, Санкт-Петербург, ул. Ново-Александровская, д.5, лит. А | C64: Бюджет МО "Свердловское городское поселение" | D64: 2013 | G64: 1,943,754.38 | J64: 1,943,754.38 | L64: 1,943,754.38 | M64: 1,943,754.38
A65: 59 | B65: ООО "Стройсервис"; 194044, Санкт-Петербург, пер. Нейшлотский, д.156 литер А пом 18-Н | C65: Бюджет МО "Свердловское городское поселение" | D65: 2013 | G65: 138,000.00 | J65: 138,000.00 | L65: 138,000.00 | M65: 138,000.00
A66: 60 | B66: ООО "Мегадор"; 194100, СПб, ул. Новолитовская, д.37а, лит. А | C66: Бюджет МО "Свердловское городское поселение" | D66: 2013 | G66: 774,489.19 | J66: 774,489.19 | L66: 774,489.19 | M66: 774,489.19
A67: 61 | B67: ООО "Мегадор"; 194100, СПб, ул. Новолитовская, д.37а, лит. А | C67: Бюджет МО "Свердловское городское поселение" | D67: 2013 | G67: 490,450.92 | J67: 490,450.92 | L67: 490,450.92 | M67: 490,450.92
A68: 62 | B68: ФГУП "Ростехинвентаризация -Федеральное БТИ"; 119415, г. Москва, пр. Вернадского, д.37, кор.2, Ленинградский филиал ФГУП "Ростехинвентаризация - Федеральное БТИ"; 188730, Ленинградская обл., Приозерский р-н, п. Сосново, ул. Озерная, д.4 | C68: Бюджет МО "Свердловское городское поселение" | D68: 2013 | G68: 318,000.00 | J68: 318,000.00 | L68: 318,000.00 | M68: 318,000.00
A69: 63 | B69: ООО "Невская Строительная Корпорация";194295, Санкт-Петербург, Тихорецкий пр., д.10, кор.2, лит. А, пом.1Н,2Н | C69: Бюджет МО "Свердловское городское поселение" | D69: 2013 | G69: 400,043.78 | J69: 400,043.78 | L69: 400,043.78 | M69: 400,043.78
A70: 64 | B70: ООО "Комплит";192171, Санкт-Петербург, ул. Матюшенко, д.10, лит.А | C70: Бюджет МО "Свердловское городское поселение" | D70: 2013 | G70: 390,882.98 | J70: 390,882.98 | L70: 390,882.98 | M70: 390,882.98
B71: ООО "ДСК ИНВЕСТ"; 192102, СПб, пр-т Волковский, д.146, лит.А | C71: Бюджет МО "Свердловское городское поселение" | D71: 2013 | G71: 2,957,019.80 | J71: 2,957,019.80 | L71: 2,957,019.80 | M71: 2,957,019.80
B72: ООО "ДСК ИНВЕСТ"; 192102, СПб, пр-т Волковский, д.146, лит.А | C72: Бюджет МО "Свердловское городское поселение" | D72: 2013 | G72: 2,628,602.09 | J72: 2,628,602.09 | L72: 2,628,602.09 | M72: 2,628,602.09
B73: ООО "СтройПроект";199155, Санкт-Петербург, ул. Уральская, д.17, кор.1, лит. ДД1Д2 | C73: Бюджет МО "Свердловское городское поселение" | D73: 2013 | G73: 761,018.62 | J73: 761,018.62 | L73: 761,018.62 | M73: 761,018.62
B74: ООО "МонтажСпецСтройКомплект";197136, СПб, Чкаловский пр., д.15, лит.З, офис 402 | C74: Бюджет МО "Свердловское городское поселение" | D74: 2013 | G74: 562,321.22 | J74: 562,321.22 | L74: 562,321.22 | M74: 562,321.22
B75: ООО "Стройсервис"; 194044, Санкт-Петербург, пер. Нейшлотский, д.156 литер А пом 18-Н | C75: Бюджет МО "Свердловское городское поселение" | D75: 2013 | G75: 415,886.41 | J75: 415,886.41 | L75: 415,886.41 | M75: 415,886.41
B76: ООО "Автономные Мобильные Системы"; 196084, СПб, ул. Ново-Рыбинская, д.19/21 БЦ "Квартал", оф.311 | C76: Бюджет МО "Свердловское городское поселение" | D76: 2013 | G76: 1,663,200.00 | J76: 1,663,200.00 | L76: 1,663,200.00 | M76: 1,663,200.00
B77: ООО "Потенциал"; 192241, Санкт-Петербург, ул. Южное шоссе, д. 49, лит.А | C77: Бюджет МО "Свердловское городское поселение" | D77: 2013 | G77: 650,590.94 | J77: 650,590.94 | L77: 650,590.94 | M77: 650,590.94
B78: ИП Благов Сергей Николаевич; 188683,Ленинградская область, Всеволожский р-н, ул. Сарая Дача, д.16 | C78: Бюджет МО "Свердловское городское поселение" | D78: 2013 | G78: 99,543.03 | J78: 99,543.03 | L78: 99,543.03 | M78: 99,543.03
B79: ООО "Энергопроф";196601, г. Пушкин, ул. Глинки д.3, офис 105 | C79: Бюджет МО "Свердловское городское поселение" | D79: 2013 | G79: 294,375.57 | J79: 294,375.57 | L79: 294,375.57 | M79: 294,375.57
B80: ООО "СтройТрест"; 191025, Санкт-Петербург, наб. реки Фонтанки, д.38 офис 32 | C80: Бюджет МО "Свердловское городское поселение" | D80: 2013 | G80: 1,381,699.40 | J80: 1,381,699.40 | L80: 1,381,699.40 | M80: 1,381,699.40
B81: ООО "ТМК СБ-инвест"; 195027, Санкт-Петербург, Большеохтинский пр.. Д.1 | C81: Бюджет МО "Свердловское городское поселение" | D81: 2013 | G81: 1,000,000.00 | J81: 1,000,000.00 | L81: 1,000,000.00 | M81: 1,000,000.00
B82: ООО "РемОтделСоюэ"; 197342, Санкт-Петербург, ул. Белоостровская, д.17, пом.5Н | C82: Бюджет МО "Свердловское городское поселение" | D82: 2013 | G82: 473,497.00 | J82: 473,497.00 | L82: 473,497.00 | M82: 473,497.00
B83: ЗАО "Рособлстрой"; 196066, Санкт-Петербург, ул. Варшавская, д.96, литер А помещение-Н | C83: Бюджет МО "Свердловское городское поселение" | D83: 2013 | G83: 102,319,446.00 | J83: 102,319,446.00 | L83: 102,319,446.00 | M83: 102,319,446.00
B84: ООО "Энергопроф";196601, г. Пушкин, ул. Глинки д.3, офис 105 | C84: Бюджет МО "Свердловское городское поселение" | D84: 2013 | G84: 282,721.37 | J84: 282,721.37 | L84: 282,721.37 | M84: 282,721.37
B85: ООО "ДСК ИНВЕСТ"; 192102, СПб, пр-т Волковский, д.146, лит.А | C85: Бюджет МО "Свердловское городское поселение" | D85: 2013 | G85: 456,630.00 | J85: 456,630.00 | L85: 456,630.00 | M85: 456,630.00
B86: ООО "Энергопроф"; 196625, г.Санкт-Петербург, пос. Тярлево, Фильтровское шоссе, д.3, лит.В | C86: Бюджет МО "Свердловское городское поселение" | D86: 2013 | G86: 212,514.12 | J86: 212,514.12 | L86: 212,514.12 | M86: 212,514.12
B87: ООО "Энергопроф"; 196625, г.Санкт-Петербург, пос. Тярлево, Фильтровское шоссе, д.3, лит.В | C87: Бюджет МО "Свердловское городское поселение" | D87: 2013 | G87: 300,231.11 | J87: 300,231.11 | L87: 300,231.11 | M87: 300,231.11
B88: ООО "Энергопроф";196601, г. Пушкин, ул. Глинки д.3, офис 105 | C88: Бюджет МО "Свердловское городское поселение" | D88: 2013 | G88: 383,689.75 | J88: 383,689.75 | L88: 383,689.75 | M88: 383,689.75
B89: ООО "РСУ-17"; 188650, ЛО, Всеволожский р-н, г.Сертолово, мкр Сертолово-1, ул. Центральная, д. 1, корп. 1, офис 3 | C89: Бюджет МО "Свердловское городское поселение" | D89: 2013 | G89: 296,270.77 | J89: 296,270.77 | L89: 296,270.77 | M89: 296,270.77
B90: ООО "ДСК ИНВЕСТ"; 192102, СПб, пр-т Волковский, д.146, лит.А, оф.29 | C90: Бюджет МО "Свердловское городское поселение" | D90: 2013 | G90: 587,429.49 | J90: 587,429.49 | L90: 587,429.49 | M90: 587,429.49
B91: ОАО "Газпром газораспределение Ленинградская область"; 188507, ЛО, Ломоносовский р-н, пос. Новоселье, здание адмимнистративного корпуса, нежилое, литер А, А1 | C91: Бюджет МО "Свердловское городское поселение" | D91: 2013 | G91: 2,444,187.14 | J91: 2,444,187.14 | L91: 2,444,187.14 | M91: 2,444,187.14
B92: ООО "СКС-СТРОЙ"; 193168, Санкт-Петербург, ул. Дыбенко, д.18, корп.1-196 | C92: Бюджет МО "Свердловское городское поселение" | D92: 2013 | G92: 900,812.68 | J92: 900,812.68 | L92: 900,812.68 | M92: 900,812.68
B93: ООО "ВиД"; 193312, Санкт-Петербург, пр.Солидарности, д.7, лит И, пом. 2-Н | C93: Бюджет МО "Свердловское городское поселение" | D93: 2013 | G93: 995,000.00 | J93: 995,000.00 | L93: 995,000.00 | M93: 995,000.00
B94: ООО "Техностар" | C94: Бюджет МО "Свердловское городское поселение" | D94: 2013 | G94: 161,150.00 | J94: 161,150.00 | L94: 161,150.00 | M94: 161,150.00
B95: ООО "СКС-СТРОЙ"; 193168, Санкт-Петербург, ул. Дыбенко, д.18, корп.1-196 | C95: Бюджет МО "Свердловское городское поселение" | D95: 2013 | G95: 150,824.76 | J95: 150,824.76 | L95: 150,824.76 | M95: 150,824.76
B96: Итого | G96: =SUM(G7:G95) -> 196,121,679.51 | J96: =SUM(J7:J95) -> 195,636,679.51 | L96: =SUM(L7:L95) -> 195,636,679.51 | M96: =SUM(M7:M95) -> 195,636,679.51

Sheet Приложение 5
E1: Приложение № 5
A3: РЕАЛИЗАЦИЯ МУНИЦИПАЛЬНЫХ ЦЕЛЕВЫХ ПРОГРАММ
A4: на территории муниципального образования "Свердловское городское поселение" Всеволожского муниципального района Ленинградской области
A5: (наименование муниципального образования)
A6: за 2013 года
A8: Информация о муниципальных целевых программах | C8: Финансирование | E8: Проведенные основные мероприятия
C9: Объем запланированных средств на 2013 г. | D9: Объем выделенных средств в рамках программы за 2013 г.
A10: Наименование программы | B10: Цель программы | C10: Всего (тыс. руб.) | D10: Всего (тыс. руб.)
A12: - | B12: - | C12: - | D12: - | E12: -
A13: - | B13: - | C13: - | D13: - | E13: -
A14: - | B14: - | C14: - | D14: - | E14: -
A15: - | B15: - | C15: - | D15: - | E15: -
A16: - | B16: - | C16: - | D16: - | E16: -
A17: - | B17: - | C17: - | D17: - | E17: -
A18: - | B18: - | C18: - | D18: - | E18: -
A19: - | B19: - | C19: - | D19: - | E19: -
A20: ИТОГО по муниципальному образованию | C20: - | D20: - | E20: -
